bitfinex-derivatives/quotes_ETHF0:USTF0_20260112
["timestamp","ask_amount","ask_price","bid_price","bid_amount"]
[1768207605592,0.81762313,3104.2,3102.8,0.00316045]
[1768207605791,2.25427053,3104.3,3102.8,0.00316045]
[1768207605792,0.81762313,3104.1,3102.8,0.00316045]
[1768207605992,2.25427053,3104.3,3102.8,0.00316045]
[1768207606193,0.81764419,3104.2,3102.8,0.00316045]
[1768207606393,2.25427053,3104.3,3102.8,0.00316045]
[1768207606692,0.81731019,3104.2,3102.9,0.16134]
[1768207606886,0.00286481,3104.5,3103.1,2.17760616]
[1768207607092,0.00286481,3104.5,3103.4,0.16132]
[1768207607287,0.00286481,3104.5,3103.5,0.16131]
[1768207607488,2.25427053,3106.2,3104.1,2.17760616]
[1768207607801,2.25427053,3106.0,3103.8,3.225]
[1768207607998,0.81765639,3105.9,3104.1,2.33888616]
[1768207608201,0.81765639,3105.8,3104.1,2.33888616]
[1768207608503,0.81765639,3105.7,3104.1,2.33888616]
[1768207609096,0.00294743,3105.8,3104.7,0.16125]
[1768207609290,0.00294743,3105.8,3103.8,3.225]
[1768207609291,2.25596781,3107.5,3105.3,1.99477176]
[1768207609597,0.81846982,3107.4,3105.8,1.99477176]
[1768207609799,0.81846982,3107.3,3105.6,2.17760616]
[1768207609998,2.50784452,3108.3,3105.5,0.16121]
[1768207609999,3.07274035,3107.2,3105.5,0.16121]
[1768207610199,0.81846982,3107.1,3105.5,2.33881616]
[1768207610502,2.25427053,3108.2,3106.3,1.99477176]
[1768207610804,2.25427053,3109.0,3106.8,2.17760616]
[1768207611102,2.25427053,3109.0,3106.3,4.17237792]
[1768207611302,2.25427053,3108.6,3106.5,1.75]
[1768207611497,2.2583079,3108.6,3106.5,1.75]
[1768207612992,2.2583079,3108.6,3106.0,0.16118]
[1768207613197,2.25427053,3108.4,3105.8,2.17760616]
[1768207613399,2.25427053,3108.4,3105.9,4.004]
[1768207613596,2.25427053,3108.4,3105.9,6.18160616]
[1768207613896,2.25427053,3108.4,3106.2,2.17760616]
[1768207614603,2.25427053,3108.4,3106.2,3.92660616]
[1768207614999,2.25427053,3108.1,3105.8,3.224]
[1768207615504,2.25427053,3107.6,3105.5,0.00366586]
[1768207615707,2.25427053,3107.1,3105.5,0.00366586]
[1768207616304,2.25427053,3106.8,3105.5,0.00366586]
[1768207617096,2.25427053,3107.7,3105.5,0.00366586]
[1768207617403,2.25427053,3107.7,3105.6,2.33880616]
[1768207618512,2.25427053,3108.5,3105.9,2.33879616]
[1768207619906,2.25427053,3108.3,3105.9,2.33879616]
[1768207620409,2.41534053,3108.3,3105.9,2.33879616]
[1768207620814,1.99880913,3108.6,3105.8,1.747]
[1768207620815,2.41536053,3107.9,3105.8,1.747]
[1768207621305,2.41536053,3107.9,3105.5,2.18127202]
[1768207621897,2.25427053,3107.7,3105.5,2.18127202]
[1768207622098,2.25427053,3107.5,3105.5,2.18127202]
[1768207622706,0.81440891,3107.4,3105.5,2.18127202]
[1768207622904,0.81440891,3107.3,3105.5,2.18127202]
[1768207623105,2.25427053,3107.5,3105.5,2.18127202]
[1768207623106,0.81440891,3107.2,3105.5,2.18127202]
[1768207623305,0.81440891,3107.1,3105.5,2.18127202]
[1768207623513,0.81440891,3107.0,3105.5,2.18127202]
[1768207623708,2.25427053,3107.5,3105.5,2.18127202]
[1768207624016,2.25427053,3107.1,3105.5,0.00366586]
[1768207624210,2.68703945,3106.8,3105.5,0.00366586]
[1768207624516,2.68703945,3106.6,3105.5,0.00366586]
[1768207624706,0.81435096,3106.5,3105.5,0.00366586]
[1768207624907,0.81394312,3106.4,3105.5,0.00366586]
[1768207625116,0.0037195,3106.4,3105.5,0.00366586]
[1768207629214,0.81841801,3106.3,3105.5,0.00366586]
[1768207629408,0.81841801,3106.2,3105.5,0.00366586]
[1768207629608,0.0037195,3106.4,3105.5,0.00366586]
[1768207629808,0.81859686,3106.3,3105.5,0.00366586]
[1768207630009,0.81859686,3106.2,3105.5,0.00366586]
[1768207630208,0.0037195,3106.4,3105.5,0.00366586]
[1768207630413,0.81870019,3106.3,3105.5,0.00366586]
[1768207630614,0.81870019,3106.2,3105.5,0.00366586]
[1768207630811,0.0037195,3106.4,3105.5,0.00366586]
[1768207631011,0.81889285,3106.3,3105.5,0.00366586]
[1768207631309,0.81889285,3106.2,3105.5,0.00366586]
[1768207631510,0.81889285,3106.1,3105.5,0.00366586]
[1768207631709,0.0037195,3106.4,3105.5,0.00366586]
[1768207631910,0.81927011,3106.3,3105.5,0.00366586]
[1768207632117,0.81927011,3106.2,3105.5,0.00366586]
[1768207632315,0.81927011,3106.1,3105.5,0.00366586]
[1768207632620,0.0037195,3106.4,3105.5,0.00366586]
[1768207635318,0.82171471,3106.3,3105.5,0.00366586]
[1768207635620,0.0037195,3106.4,3105.5,0.00366586]
[1768207635817,0.16112,3107.2,3105.5,0.00366586]
[1768207636022,0.82194562,3107.1,3105.5,2.52428641]
[1768207636312,0.82194562,3107.0,3105.5,2.52428641]
[1768207636520,3.40056583,3106.9,3105.5,0.00366586]
[1768207636706,2.57862021,3106.7,3105.5,0.00366586]
[1768207636908,3.40056583,3106.6,3105.5,0.00366586]
[1768207637110,0.82194562,3106.5,3105.5,0.00366586]
[1768207637918,2.57862021,3106.4,3105.5,0.00366586]
[1768207638117,0.82194562,3106.3,3105.5,0.00366586]
[1768207638616,3.40056583,3106.3,3105.5,0.00366586]
[1768207638819,0.82194562,3106.2,3105.5,0.00366586]
[1768207640121,0.82194562,3106.2,3104.6,0.16126]
[1768207640618,2.57862021,3106.1,3104.0,0.16129]
[1768207640831,2.73984021,3105.3,3103.4,2.52062055]
[1768207641015,2.73984021,3105.3,3103.4,2.52396538]
[1768207641016,2.57862021,3105.1,3103.4,2.52396538]
[1768207641316,0.82194562,3105.0,3103.4,2.52396538]
[1768207641711,0.82194562,3105.0,3103.4,2.68528538]
[1768207642031,4.83458802,3106.2,3104.1,2.68190055]
[1768207642210,0.82370984,3106.1,3104.3,2.52062055]
[1768207642410,0.82370984,3106.0,3104.3,2.52062055]
[1768207642617,0.82370984,3105.9,3104.3,2.52062055]
[1768207642813,0.82370984,3105.8,3104.3,2.52062055]
[1768207643126,0.82370984,3105.7,3104.4,2.52062055]
[1768207643422,0.00343638,3106.7,3104.4,2.52062055]
[1768207643622,1.17978561,3106.6,3104.8,2.52062055]
[1768207643812,1.17978561,3106.6,3104.3,4.965]
[1768207643813,0.82466258,3106.5,3105.0,2.52062055]
[1768207644020,0.00343638,3106.7,3105.9,0.16119]
[1768207644325,0.00343638,3106.7,3105.9,0.16507485]
[1768207644922,4.99566802,3108.0,3105.9,0.16507485]
[1768207645121,2.57862021,3108.0,3106.1,0.16118]
[1768207645317,2.25596781,3108.4,3106.2,2.68179055]
[1768207645526,0.35643772,3108.3,3106.2,2.68179055]
[1768207645729,0.35643772,3108.2,3106.2,2.68179055]
[1768207645919,0.35643772,3108.1,3106.2,2.68179055]
[1768207646120,0.00266176,3108.2,3106.2,2.68179055]
[1768207646522,0.00266176,3108.2,3106.4,0.16116]
[1768207646817,0.00266176,3108.2,3106.7,1.99477176]
[1768207647016,2.57862021,3109.1,3107.0,2.68175055]
[1768207647219,2.93502447,3109.0,3107.2,0.16112]
[1768207647421,2.57862021,3109.0,3107.0,4.964]
[1768207647629,6.09672885,3109.7,3106.5,2.68177055]
[1768207647630,2.57862021,3108.8,3106.5,2.68177055]
[1768207647824,0.35604562,3108.9,3106.5,2.68177055]
[1768207647825,2.93465916,3108.7,3106.5,4.67654231]
[1768207648027,2.57862021,3108.7,3106.6,2.52062055]
[1768207648223,2.58089192,3108.7,3106.6,2.52062055]
[1768207648525,2.58089192,3108.7,3106.6,2.68177055]
[1768207649523,2.58089192,3108.7,3106.6,7.64377055]
[1768207650920,2.58089192,3108.7,3106.7,2.68176055]
[1768207651728,2.58089192,3108.7,3106.2,2.52062055]
[1768207651729,4.73670368,3108.7,3106.2,2.52062055]
[1768207651924,2.57862021,3108.6,3106.3,4.961]
[1768207653030,2.57862021,3108.4,3106.2,2.68179055]
[1768207653229,2.57862021,3108.4,3106.4,1.738]
[1768207654031,2.57862021,3108.4,3106.5,0.16116]
[1768207654239,2.57862021,3108.4,3106.4,6.25339231]
[1768207655538,2.57862021,3108.4,3106.6,0.16115]
[1768207655932,2.57862021,3108.4,3106.4,2.52062055]
[1768207656132,2.95465706,3108.2,3106.0,0.16118]
[1768207656331,0.16106,3108.5,3106.1,4.96]
[1768207656332,2.95465706,3108.0,3106.1,4.96]
[1768207656534,0.8230634,3107.9,3106.1,4.96]
[1768207656835,0.8230634,3107.8,3106.1,4.96]
[1768207657035,0.8230634,3107.7,3106.1,4.96]
[1768207657237,2.95465706,3108.0,3106.1,4.96]
[1768207657440,0.82211754,3107.9,3106.1,5.12118]
[1768207657739,0.82211754,3107.8,3106.3,3.00316253]
[1768207657941,0.16106,3108.5,3106.3,2.84199253]
[1768207658138,1.17648577,3108.4,3106.3,2.84199253]
[1768207658339,3.77657997,3108.3,3106.3,2.84199253]
[1768207658537,0.82192291,3108.2,3106.3,2.84199253]
[1768207658730,0.82192291,3108.1,3106.3,2.84199253]
[1768207658928,0.82192291,3108.0,3106.3,2.84199253]
[1768207659224,0.82192291,3107.9,3106.3,2.84199253]
[1768207659429,0.82192291,3107.8,3106.4,0.16116]
[1768207659635,2.95465706,3108.3,3106.4,0.16116]
[1768207659832,2.95465706,3108.1,3106.4,0.16116]
[1768207660042,0.82177377,3108.0,3106.5,1.737]
[1768207660346,0.82177377,3107.9,3106.5,1.737]
[1768207660636,0.82177377,3107.8,3106.5,1.737]
[1768207660841,2.95465706,3108.1,3106.5,1.737]
[1768207661138,0.82171311,3108.0,3106.5,1.89815]
[1768207661434,0.82171311,3107.9,3106.6,0.16115]
[1768207661642,0.82171311,3107.8,3106.6,0.16115]
[1768207661834,3.11571706,3108.5,3106.6,0.16115]
[1768207662038,2.95465706,3108.3,3106.6,0.16115]
[1768207662234,3.77643503,3108.2,3106.6,0.16115]
[1768207662434,0.82177797,3108.1,3106.6,0.16115]
[1768207662836,2.95465706,3108.0,3106.0,0.16118]
[1768207663137,2.95465706,3107.6,3105.9,0.00388485]
[1768207663337,2.95465706,3107.4,3105.9,0.00388485]
[1768207663639,0.16109,3107.7,3105.9,0.00388485]
[1768207663640,2.95465706,3107.2,3105.9,0.00388485]
[1768207663940,3.77643503,3107.1,3105.9,0.00388485]
[1768207664238,0.82177797,3107.0,3105.9,0.00388485]
[1768207666542,2.95465706,3107.6,3105.9,0.00388485]
[1768207666743,2.95465706,3107.4,3105.9,0.00388485]
[1768207666940,2.95465706,3107.2,3105.9,0.00388485]
[1768207667242,0.82181098,3107.1,3105.9,0.00388485]
[1768207667437,0.82181098,3107.0,3105.9,0.00388485]
[1768207667644,2.95465706,3107.4,3105.9,0.00388485]
[1768207667833,0.82169045,3107.3,3105.9,0.16507485]
[1768207668033,2.95465706,3107.9,3106.0,2.84199253]
[1768207668336,0.82178978,3107.8,3106.0,2.84199253]
[1768207668542,0.82178978,3107.7,3106.0,2.84199253]
[1768207668845,0.82178978,3107.6,3106.1,1.734]
[1768207669142,0.82178978,3107.5,3106.1,1.734]
[1768207669344,2.95465706,3107.9,3106.1,1.734]
[1768207669542,0.82260215,3107.8,3106.2,0.16117]
[1768207669746,0.82260215,3107.7,3106.2,0.16117]
[1768207669947,3.77725921,3107.6,3106.1,1.734]
[1768207670141,0.82260215,3107.5,3105.9,0.00388485]
[1768207670345,0.82260215,3107.4,3105.9,1.73788485]
[1768207670647,3.77759767,3107.3,3105.9,0.00388485]
[1768207670946,2.95465706,3107.9,3105.9,3.00706738]
[1768207671145,0.82296657,3107.8,3105.9,3.00706738]
[1768207671346,0.82296657,3107.7,3105.9,3.00706738]
[1768207671648,0.82296657,3107.6,3105.9,3.00706738]
[1768207671849,0.82296657,3107.5,3106.0,0.16118]
[1768207672041,0.82296657,3107.4,3106.1,0.16118]
[1768207672240,0.82296657,3107.3,3106.1,0.16118]
[1768207672442,0.82296657,3107.2,3106.1,0.16118]
[1768207672740,2.95465706,3107.9,3106.1,0.16118]
[1768207672941,0.82501618,3107.8,3106.1,0.16118]
[1768207673141,0.82501618,3107.7,3106.3,0.16117]
[1768207673337,0.82501618,3107.6,3106.3,0.16117]
[1768207673648,0.82501618,3107.5,3106.3,0.16117]
[1768207673848,0.82501618,3107.4,3106.3,0.16117]
[1768207674145,2.95465706,3107.9,3106.3,0.16117]
[1768207674447,0.82560007,3107.8,3106.4,0.16116]
[1768207674752,0.82560007,3107.7,3106.4,0.16116]
[1768207675047,0.82560007,3107.6,3106.4,0.16116]
[1768207675249,0.82560007,3107.5,3106.4,0.16116]
[1768207675447,2.95465706,3107.9,3106.4,0.16116]
[1768207675649,0.82586795,3107.8,3106.4,0.16116]
[1768207675950,0.82586795,3107.7,3106.4,0.16116]
[1768207676250,0.82586795,3107.6,3106.4,0.16116]
[1768207676451,0.82586795,3107.5,3106.4,0.16116]
[1768207676648,2.95465706,3107.9,3106.4,0.16116]
[1768207676951,0.82583774,3107.8,3106.4,0.16116]
[1768207677146,0.82583774,3107.7,3106.4,0.16116]
[1768207677343,0.82583774,3107.6,3106.4,0.16116]
[1768207677551,0.82583774,3107.5,3106.4,0.16116]
[1768207677849,2.95465706,3107.9,3106.4,0.16116]
[1768207678050,0.82592539,3107.8,3106.4,0.16116]
[1768207678351,0.82592539,3107.7,3106.4,0.16116]
[1768207678547,0.82592539,3107.6,3106.4,0.16116]
[1768207678748,0.82592539,3107.5,3106.4,0.16116]
[1768207678949,2.95465706,3107.9,3106.4,0.16116]
[1768207679252,0.82602988,3107.8,3106.4,0.16116]
[1768207679452,0.82602988,3107.7,3106.4,0.16116]
[1768207679960,3.95904448,3108.8,3106.4,2.84199253]
[1768207679961,2.95465706,3108.5,3106.4,2.84199253]
[1768207680152,0.82625943,3108.4,3106.4,2.84199253]
[1768207680449,2.95465706,3108.2,3106.3,1.731]
[1768207680650,0.16106,3108.4,3106.3,1.89216]
[1768207680651,2.95465706,3108.0,3106.3,1.89216]
[1768207680851,3.78091649,3107.9,3106.3,1.89216]
[1768207681046,0.82625943,3107.8,3106.3,1.89216]
[1768207681243,0.82625943,3107.8,3105.9,0.00388485]
[1768207681244,2.95465706,3107.7,3105.9,0.00388485]
[1768207681543,2.95465706,3107.5,3105.9,0.00388485]
[1768207681746,2.95465706,3107.3,3105.9,0.00388485]
[1768207681949,2.95465706,3107.1,3105.9,0.00388485]
[1768207682150,3.77704385,3107.0,3105.9,0.00388485]
[1768207682351,2.95078442,3106.8,3105.9,0.00388485]
[1768207682551,2.95078442,3106.6,3105.1,1.731]
[1768207682744,0.8316185,3106.7,3104.3,0.16127]
[1768207682745,2.95078442,3106.4,3104.3,0.16127]
[1768207682942,2.95078442,3106.2,3104.3,0.16127]
[1768207683148,0.8316185,3106.1,3104.2,4.84581165]
[1768207683343,0.8316185,3106.0,3104.2,4.84581165]
[1768207683549,2.95078442,3106.2,3104.6,0.16125]
[1768207683748,0.8307882,3106.1,3104.6,0.16471188]
[1768207683950,0.8307882,3106.0,3104.6,0.16471188]
[1768207684154,2.95431582,3106.2,3104.6,0.16471188]
[1768207684354,0.83079064,3106.1,3104.6,0.16471188]
[1768207684555,2.95431582,3106.2,3104.6,0.16471188]
[1768207684756,0.8303415,3106.1,3104.6,0.16471188]
[1768207684957,2.95431582,3106.2,3104.6,0.16471188]
[1768207685155,0.83034032,3106.1,3104.6,0.16471188]
[1768207685357,2.95431582,3106.2,3104.6,0.16471188]
[1768207685652,0.83000506,3106.1,3104.6,0.16471188]
[1768207685853,2.95431582,3106.2,3104.6,0.16471188]
[1768207686049,0.83000572,3106.1,3104.6,0.16471188]
[1768207686253,2.95431582,3106.2,3104.6,0.16471188]
[1768207686453,0.82969289,3106.1,3104.6,0.16471188]
[1768207686657,2.95431582,3106.2,3104.6,0.16471188]
[1768207686848,0.82968693,3106.1,3104.6,0.16471188]
[1768207687049,2.95431582,3106.2,3104.6,0.16471188]
[1768207687245,3.92060446,3106.1,3104.6,0.16471188]
[1768207687445,3.09092155,3105.9,3104.6,0.00346188]
[1768207687648,3.09092155,3105.7,3104.6,0.00346188]
[1768207688952,3.09445295,3106.2,3104.6,0.00346188]
[1768207689157,0.83059155,3106.1,3104.7,0.16125]
[1768207689452,0.0035314,3106.2,3104.7,0.16125]
[1768207689656,0.0035314,3106.2,3104.9,0.16124]
[1768207690155,0.0035314,3106.2,3104.6,2.9749253]
[1768207690156,3.09445295,3106.2,3104.6,0.00346188]
[1768207690747,2.95685931,3106.0,3104.6,0.00346188]
[1768207690954,2.95685931,3105.8,3104.6,0.00346188]
[1768207698954,2.95685931,3105.6,3103.6,1.728]
[1768207699157,0.82935287,3105.5,3103.7,0.1613]
[1768207699355,2.95685931,3105.4,3103.7,0.1613]
[1768207699554,2.95685931,3105.4,3103.8,0.16129]
[1768207699958,2.95685931,3105.4,3104.1,0.16128]
[1768207700866,2.95685931,3105.9,3104.2,0.16127]
[1768207701064,2.95685931,3105.7,3104.3,0.16127]
[1768207701365,2.96039071,3106.2,3104.7,0.16125]
[1768207701567,3.7864085,3106.1,3104.7,0.16125]
[1768207701864,2.95685931,3106.0,3104.7,0.16125]
[1768207702766,2.95685931,3106.0,3104.2,3.33512133]
[1768207702964,2.95685931,3106.0,3104.2,3.17384133]
[1768207703265,2.95685931,3106.0,3103.8,0.00395243]
[1768207703466,2.95685931,3106.0,3104.3,0.16127]
[1768207703657,2.95685931,3105.8,3104.3,0.16127]
[1768207704966,2.95685931,3105.8,3104.4,0.16126]
[1768207705569,0.0035314,3106.2,3104.0,3.17384133]
[1768207705761,0.83043923,3106.1,3104.6,0.16125]
[1768207705967,0.0035314,3106.2,3104.9,0.16124]
[1768207706469,0.0035314,3106.2,3105.0,0.16123]
[1768207707055,1.287,3107.5,3105.3,0.16122]
[1768207707056,2.95685931,3106.9,3105.3,0.16122]
[1768207707358,2.95685931,3107.4,3105.8,0.16119]
[1768207707666,0.83168026,3107.3,3106.0,0.16118]
[1768207707867,2.95685931,3107.9,3106.0,0.16118]
[1768207708067,3.78853854,3107.8,3106.0,0.16118]
[1768207708267,0.83167923,3107.7,3106.0,0.16449091]
[1768207708454,0.83167923,3107.6,3106.0,0.16449091]
[1768207709264,0.83167923,3107.6,3106.0,0.00331091]
[1768207709265,2.95685931,3107.5,3106.0,0.00331091]
[1768207709566,2.95685931,3107.3,3106.0,0.00331091]
[1768207709766,2.95685931,3107.1,3106.0,0.00331091]
[1768207709970,0.83204347,3107.0,3106.0,0.00331091]
[1768207710264,2.95685931,3107.1,3106.0,0.00331091]
[1768207710461,0.83190057,3107.0,3106.0,0.00331091]
[1768207710664,2.95685931,3107.6,3106.0,0.00331091]
[1768207710861,2.95685931,3107.4,3106.0,0.00331091]
[1768207711065,3.78877531,3107.3,3106.0,0.00331091]
[1768207711370,2.95685931,3107.1,3106.0,0.00331091]
[1768207711667,2.95685931,3106.9,3106.0,0.00331091]
[1768207711871,2.95685931,3106.7,3105.1,1.725]
[1768207712472,2.95685931,3106.7,3105.0,0.16123]
[1768207712767,0.83200632,3106.6,3105.0,0.16458525]
[1768207712969,0.83200632,3106.5,3105.1,0.16123]
[1768207713270,0.83200632,3106.4,3105.1,0.16123]
[1768207713459,2.95685931,3106.7,3105.1,0.16123]
[1768207713665,0.83193587,3106.6,3105.1,0.16123]
[1768207713870,0.83193587,3106.5,3105.1,0.16123]
[1768207714061,0.83193587,3106.4,3105.1,0.16123]
[1768207714262,2.95685931,3106.7,3105.1,0.16123]
[1768207714462,0.83189462,3106.6,3105.1,0.16123]
[1768207714662,0.83189462,3106.5,3105.1,0.16123]
[1768207714871,0.83189462,3106.4,3105.1,0.16123]
[1768207715073,2.95685931,3106.7,3105.1,0.16123]
[1768207715266,0.83189091,3106.6,3105.1,0.16123]
[1768207715573,0.83189091,3106.5,3105.1,0.16123]
[1768207715771,0.83189091,3106.4,3105.1,0.16123]
[1768207715969,3.15410842,3107.2,3105.3,0.16122]
[1768207716268,0.83190736,3107.1,3105.5,0.16121]
[1768207716573,0.83190736,3107.0,3105.6,1.724]
[1768207716767,0.83190736,3106.9,3105.6,1.724]
[1768207716965,0.83190736,3106.8,3105.6,1.724]
[1768207717168,3.15410842,3107.8,3106.0,0.16118]
[1768207717376,3.15410842,3107.6,3106.0,0.16118]
[1768207717575,3.15410842,3107.4,3105.5,0.16121]
[1768207717767,3.15410842,3107.2,3105.6,1.723]
[1768207717973,3.15410842,3107.2,3105.7,0.1612]
[1768207718473,0.83122331,3107.1,3105.7,0.1612]
[1768207718671,3.15410842,3107.2,3105.8,0.16119]
[1768207718872,0.83119951,3107.1,3105.8,0.16119]
[1768207719077,0.83119951,3107.0,3105.8,0.16119]
[1768207719378,3.15410842,3107.2,3105.8,0.16119]
[1768207719579,0.83092057,3107.1,3105.8,0.16119]
[1768207719779,3.15410842,3107.7,3106.0,1.99280013]
[1768207719974,0.83094975,3107.6,3106.0,5.00071651]
[1768207720175,0.83094975,3107.5,3106.5,1.99280013]
[1768207720384,0.83094975,3107.4,3106.3,0.16117]
[1768207720575,3.15410842,3107.7,3106.0,3.223]
[1768207720778,3.15410842,3107.5,3106.0,3.223]
[1768207720979,0.83059829,3107.4,3106.0,3.223]
[1768207721179,0.83059829,3107.3,3106.0,3.223]
[1768207721479,3.15410842,3107.5,3106.0,3.223]
[1768207721669,0.83043675,3107.4,3106.0,3.223]
[1768207721871,0.83046315,3107.3,3106.0,3.223]
[1768207722067,3.15410842,3107.5,3106.0,3.223]
[1768207722267,0.83045622,3107.4,3106.0,3.38418]
[1768207722477,3.15410842,3107.5,3106.0,3.38418]
[1768207722680,3.15757263,3107.9,3106.0,5.37698013]
[1768207722879,0.83024767,3107.8,3106.0,5.37698013]
[1768207723078,0.83024767,3107.7,3106.0,5.37698013]
[1768207723284,0.83024767,3107.6,3106.1,0.16118]
[1768207723484,3.15757263,3107.9,3106.1,0.16118]
[1768207723681,3.15410842,3107.7,3106.1,0.16118]
[1768207723888,3.15410842,3107.5,3106.1,1.88318]
[1768207725882,3.15410842,3107.5,3106.1,0.16118]
[1768207726586,3.15410842,3107.3,3105.8,1.721]
[1768207730193,3.15410842,3107.1,3105.7,1.8822]
[1768207730888,3.15410842,3106.9,3105.7,1.8822]
[1768207731393,0.83124808,3106.8,3105.7,1.8822]
[1768207731582,3.15410842,3106.9,3105.7,1.8822]
[1768207732385,0.83120909,3106.8,3105.7,1.8812]
[1768207732590,3.15410842,3106.9,3105.7,1.8812]
[1768207733093,3.15410842,3107.4,3105.8,0.16119]
[1768207733292,3.98541166,3107.3,3105.8,0.16119]
[1768207733493,3.98541166,3107.2,3105.8,0.16119]
[1768207733793,0.83130324,3107.1,3105.8,0.16119]
[1768207735901,0.83130324,3107.1,3105.9,0.16119]
[1768207736087,0.83130324,3107.0,3105.9,0.16119]
[1768207736397,0.83323038,3106.9,3105.9,0.16119]
[1768207736583,3.15410842,3107.5,3105.9,0.16119]
[1768207736897,3.98733846,3107.4,3105.9,0.16119]
[1768207737097,0.83323004,3107.3,3105.9,0.16119]
[1768207737296,0.83323004,3107.2,3105.9,0.16119]
[1768207737597,0.83323004,3107.1,3105.9,0.16119]
[1768207737796,3.15410842,3107.4,3106.1,0.16118]
[1768207738003,0.83348409,3107.3,3106.1,0.16118]
[1768207738299,0.83348409,3107.2,3106.1,2.15398013]
[1768207738595,3.15757263,3107.9,3106.2,3.00791638]
[1768207738800,1.19029242,3107.8,3106.2,3.00791638]
[1768207738992,0.83348239,3107.7,3106.2,3.00791638]
[1768207739296,0.83348239,3107.6,3106.2,3.00791638]
[1768207739483,0.83348239,3107.5,3106.2,3.00791638]
[1768207739688,0.00346421,3107.9,3106.2,3.00791638]
[1768207739888,0.83347964,3107.8,3106.8,0.16114]
[1768207740088,2.25596781,3108.8,3107.0,0.16113]
[1768207740293,3.15410842,3108.6,3107.1,1.718]
[1768207740496,3.98769463,3108.5,3107.1,4.941]
[1768207740692,0.83358621,3108.4,3107.1,4.941]
[1768207740889,0.83358621,3108.3,3107.1,4.941]
[1768207741082,0.83358621,3108.2,3107.2,1.718]
[1768207741283,0.83358621,3108.2,3107.2,1.72140898]
[1768207741700,0.00295505,3108.3,3107.2,1.88252898]
[1768207742494,3.15706347,3108.3,3107.3,1.718]
[1768207743287,0.83226569,3108.2,3107.3,1.718]
[1768207743492,3.15706347,3108.3,3107.3,1.718]
[1768207743687,0.83231681,3108.2,3107.3,1.718]
[1768207743896,3.15706347,3108.3,3107.3,1.718]
[1768207744095,0.83230451,3108.2,3107.3,1.718]
[1768207744398,3.15706347,3108.3,3107.3,1.718]
[1768207745801,0.00295505,3108.3,3107.3,1.718]
[1768207746099,0.00295505,3108.3,3107.4,1.99280013]
[1768207746403,3.2476106,3108.8,3107.5,0.1611]
[1768207746603,0.83190417,3108.7,3107.5,0.1611]
[1768207746899,3.2476106,3108.8,3107.5,0.1611]
[1768207747100,0.83186033,3108.7,3107.5,0.1611]
[1768207747301,0.00234031,3108.7,3107.5,0.1611]
[1768207748810,3.24995091,3108.7,3107.5,0.1611]
[1768207749298,0.00234031,3108.7,3107.5,0.1611]
[1768207750004,0.00234031,3108.7,3107.7,0.16109]
[1768207750710,3.24651797,3108.7,3107.2,0.00340898]
[1768207750907,3.24651797,3108.7,3107.8,1.716]
[1768207752715,10.342,3109.6,3107.8,1.716]
[1768207752716,3.10958614,3110.3,3108.0,3.24323029]
[1768207752911,1.3465093,3110.2,3108.0,3.40431029]
[1768207753105,0.83008961,3110.1,3108.0,0.16108]
[1768207753411,1.18526103,3110.0,3107.3,6.95103042]
[1768207753601,0.83008961,3109.9,3107.3,6.95103042]
[1768207753804,0.83008961,3109.8,3107.4,3.24323029]
[1768207754003,0.83008961,3109.7,3107.7,0.16109]
[1768207754203,0.83008961,3109.6,3107.7,0.16109]
[1768207754405,0.83008961,3109.5,3107.7,0.16109]
[1768207754714,0.83008961,3109.4,3107.7,0.16109]
[1768207754904,4.07426727,3109.3,3107.7,0.16109]
[1768207755108,3.24417766,3109.1,3107.7,0.16109]
[1768207758317,3.24417766,3109.9,3107.9,0.16108]
[1768207758505,3.24417766,3109.7,3107.9,0.16108]
[1768207758707,3.24417766,3109.5,3107.9,0.16108]
[1768207759010,0.83090486,3109.4,3107.9,0.16108]
[1768207759214,3.24417766,3109.5,3107.9,0.16108]
[1768207759516,3.24417766,3109.5,3108.0,0.16108]
[1768207759909,3.24417766,3109.8,3108.0,5.39711042]
[1768207760107,0.8309517,3109.7,3108.0,5.39711042]
[1768207760310,0.00351037,3110.0,3108.5,1.99280013]
[1768207760612,0.00351037,3110.0,3108.5,2.15385013]
[1768207760803,0.00351037,3110.0,3108.6,0.16105]
[1768207761002,0.00351037,3110.0,3108.7,0.16104]
[1768207761403,3.24417766,3111.0,3109.2,0.16102]
[1768207761618,3.24417766,3110.8,3109.2,0.16102]
[1768207761810,3.24417766,3110.6,3109.2,0.16102]
[1768207762205,3.24417766,3110.6,3108.4,1.99280013]
[1768207762406,3.24832192,3110.6,3108.9,1.99280013]
[1768207762809,0.8311477,3110.5,3108.9,2.15383013]
[1768207763020,0.00414426,3110.6,3109.4,1.99280013]
[1768207763209,0.00414426,3110.6,3109.4,1.99633087]
[1768207763409,0.8309441,3110.5,3109.4,1.99633087]
[1768207763622,0.00414426,3110.6,3109.4,3.86933087]
[1768207764122,0.00414426,3110.6,3109.5,0.161]
[1768207765615,3.24417766,3111.1,3109.5,0.161]
[1768207765823,0.83062512,3111.0,3109.5,0.161]
[1768207766024,0.83062512,3110.9,3109.6,0.161]
[1768207766319,0.83062512,3110.8,3109.6,0.161]
[1768207766519,3.24417766,3111.1,3109.6,0.161]
[1768207766721,0.83058826,3111.0,3109.6,0.161]
[1768207766921,0.83058826,3110.9,3109.6,0.161]
[1768207767122,3.24742809,3111.1,3109.6,0.161]
[1768207767323,0.83024936,3111.0,3109.8,0.16099]
[1768207767520,3.24742809,3111.1,3109.8,0.16099]
[1768207767924,0.83098324,3111.0,3109.8,1.87199]
[1768207768118,3.24742809,3111.1,3109.8,1.87199]
[1768207768315,3.24417766,3110.9,3109.4,0.00353074]
[1768207768518,3.24417766,3110.7,3109.4,0.00353074]
[1768207768720,4.07514924,3110.6,3109.4,0.00353074]
[1768207768920,0.83097158,3110.5,3109.4,0.00353074]
[1768207769121,3.24417766,3110.6,3109.4,0.00353074]
[1768207769329,0.83066306,3110.5,3109.4,0.00353074]
[1768207769619,0.83066306,3110.4,3109.4,0.00353074]
[1768207769825,0.00325043,3111.1,3109.4,0.00353074]
[1768207769826,3.24742809,3111.1,3109.5,1.99280013]
[1768207770121,0.83101735,3111.0,3109.6,0.161]
[1768207770327,0.83085678,3110.9,3109.6,0.161]
[1768207770624,0.00325043,3111.1,3110.0,2.15377013]
[1768207771620,0.00325043,3111.1,3110.1,0.16097]
[1768207772016,0.00325043,3111.1,3110.3,0.16096]
[1768207772330,3.24417766,3111.6,3110.4,0.16095]
[1768207772523,0.83039108,3111.5,3110.5,0.16095]
[1768207772727,3.24417766,3111.6,3110.5,0.16095]
[1768207773430,3.24686823,3111.6,3110.5,0.16095]